[Event "WCCC G12 2019"]
[Site "Weifang"]
[Date "2019.08.29"]
[Round "7"]
[White "Wei, Yaqing"]
[Black "Savitha Shri B"]
[Result "1/2-1/2"]
[ECO "B88"]
[WhiteElo "1640"]
[BlackElo "2010"]
[Annotator "NA"]
[PlyCount "167"]
[EventDate "2019.08.21"]
[EventType "swiss"]
[EventCountry "CHN"]
[SourceTitle "playchess.com"]
[Source "ChessBase"]
[SourceQuality "1"]
[TimeControl "40/5400+30:1800+30"]

1. e4 {[%emt 0:00:00]} c5 {[%emt 0:00:00]} 2. Nf3 {[%emt 0:00:09]} d6 {[%emt 0:00:00]} 3. d4 {[%emt 0:00:50]} cxd4 {[%emt 0:00:00]} 4. Nxd4 {[%emt 0:00:08]} Nf6 {[%emt 0:00:06]} 5. Nc3 {[%emt 0:00:08]} a6 {[%emt 0:00:07]} 6. a4 {[%emt 0:01:45]} e6 {[%emt 0:00:14]} 7. Bc4 {[%emt 0:01:38]} Be7 {[%emt 0:01:03]} 8. O-O {[%emt 0:02:44]} O-O {[%emt 0:01:15]} 9. Be3 {[%emt 0:02:59]} Qc7 {[%emt 0:01:01]} 10. Qe2 {[%emt 0:06:53]} Nc6 {[%emt 0:05:41]} 11. f4 {[%emt 0:04:59]} Bd7 {[%emt 0:02:13]} 12. Nb3 {[%emt 0:04:31]} Rac8 {[%emt 0:01:52]} 13. Bd3 {[%emt 0:01:57]} Na5 {[%emt 0:04:36]} 14. Nd2 {[%emt 0:14:54]} Ne8 {[%emt 0:16:21]} 15. Qf2 {[%emt 0:05:09]} Qb8 {[%emt 0:00:52]} 16. Ne2 {[%emt 0:06:25]} Bf6 {[%emt 0:00:24]} 17. c3 {[%emt 0:01:09]} Nc6 {[%emt 0:09:07]} 18. a5 {[%emt 0:03:51]} g6 {[%emt 0:02:36]} 19. Nc4 {[%emt 0:03:36]} Bg7 {[%emt 0:01:16]} 20. Nb6 {[%emt 0:02:53]} Rd8 {[%emt 0:00:06]} 21. b4 {[%emt 0:04:59]} Nc7 {[%emt 0:01:09]} 22. Rab1 {[%emt 0:04:15]} Be8 {[%emt 0:04:33]} 23. c4 {[%emt 0:04:55]} f5 {[%emt 0:04:09]} 24. Nd4 {[%emt 0:02:42]} Nxd4 {[%emt 0:08:06]} 25. Bxd4 {[%emt 0:00:10]} e5 {[%emt 0:00:12]} 26. Be3 {[%emt 0:00:39]} fxe4 {[%emt 0:02:21]} 27. Bxe4 {[%emt 0:00:11]} Bc6 {[%emt 0:00:11]} 28. Qc2 {[%emt 0:01:40]} exf4 {[%emt 0:12:51]} 29. Bxf4 {[%emt 0:00:38]} Ne6 {[%emt 0:02:31]} 30. Bg3 {[%emt 0:01:00]} Kh8 {[%emt 0:07:00]} 31. Bxc6 {[%emt 0:07:13]} bxc6 {[%emt 0:00:09]} 32. c5 {[%emt 0:00:42]} Nd4 {[%emt 0:02:05]} 33. Qd3 {[%emt 0:01:55]} Nf5 {[%emt 0:02:39]} 34. Bxd6 {[%emt 0:07:01]} Nxd6 {[%emt 0:00:23]} 35. cxd6 {[%emt 0:00:09]} Qxd6 {[%emt 0:01:46]} 36. Qxa6 {[%emt 0:00:28]} Qd4+ {[%emt 0:06:06]} 37. Kh1 {[%emt 0:00:20]} c5 {[%emt 0:02:29]} 38. bxc5 {[%emt 0:00:45]} Qxc5 {[%emt 0:00:02]} 39. Rxf8+ {[%emt 0:00:55]} Rxf8 {[%emt 0:00:07]} 40. h3 {[%emt 0:00:00]} Bc3 {[%emt 0:00:00]} 41. Qb5 {[%emt 0:19:31]} Qxb5 {[%emt 0:13:48]} 42. Rxb5 {[%emt 0:00:07]} Rf1+ {[%emt 0:00:30]} 43. Kh2 {[%emt 0:00:05]} Ra1 {[%emt 0:00:22]} 44. Nc4 {[%emt 0:00:38]} Ra4 {[%emt 0:00:14]} 45. Rc5 {[%emt 0:01:59]} Bb4 {[%emt 0:00:26]} 46. Rc8+ {[%emt 0:01:57]} Kg7 {[%emt 0:00:06]} 47. Ra8 {[%emt 0:00:11]} Bc3 {[%emt 0:01:25]} 48. Nb6 {[%emt 0:01:25]} Rxa5 {[%emt 0:00:41]} 49. Rxa5 {[%emt 0:00:11]} Bxa5 {[%emt 0:00:07]} 50. Nc4 {[%emt 0:00:04]} Bc7+ {[%emt 0:00:04]} 51. g3 {[%emt 0:00:05]} h5 {[%emt 0:00:07]} 52. Kg2 {[%emt 0:00:06]} g5 {[%emt 0:00:04]} 53. Kf3 {[%emt 0:00:55]} Kg6 {[%emt 0:00:20]} 54. g4 {[%emt 0:00:21]} hxg4+ {[%emt 0:01:03]} 55. hxg4 {[%emt 0:00:04]} Kf6 {[%emt 0:00:20]} 56. Ke4 {[%emt 0:00:11]} Ke6 {[%emt 0:00:23]} 57. Ne3 {[%emt 0:00:08]} Bf4 {[%emt 0:00:14]} 58. Nd5 {[%emt 0:00:15]} Bc1 {[%emt 0:00:05]} 59. Nc7+ {[%emt 0:00:11]} Kd7 {[%emt 0:00:10]} 60. Nb5 {[%emt 0:00:11]} Ke6 {[%emt 0:00:03]} 61. Nd4+ {[%emt 0:00:07]} Kf6 {[%emt 0:00:21]} 62. Kd5 {[%emt 0:00:40]} Be3 {[%emt 0:00:13]} 63. Nb5 {[%emt 0:00:14]} Bf4 {[%emt 0:00:08]} 64. Nc3 {[%emt 0:00:08]} Bc1 {[%emt 0:02:02]} 65. Ne4+ {[%emt 0:00:09]} Kg6 {[%emt 0:00:08]} 66. Ke6 {[%emt 0:00:07]} Ba3 {[%emt 0:01:00]} 67. Nd2 {[%emt 0:01:30]} Bc1 {[%emt 0:01:31]} 68. Nc4 {[%emt 0:00:10]} Bf4 {[%emt 0:00:06]} 69. Na5 {[%emt 0:00:17]} Kh6 {[%emt 0:02:25]} 70. Kf6 {[%emt 0:00:17]} Bg3 {[%emt 0:00:20]} 71. Nc6 {[%emt 0:00:36]} Bc7 {[%emt 0:00:48]} 72. Nd4 {[%emt 0:00:20]} Bf4 {[%emt 0:00:27]} 73. Ne6 {[%emt 0:00:28]} Bc1 {[%emt 0:00:07]} 74. Nd8 {[%emt 0:00:09]} Bd2 {[%emt 0:00:57]} 75. Nf7+ {[%emt 0:00:18]} Kh7 {[%emt 0:00:06]} 76. Kf5 {[%emt 0:01:28]} Bc1 {[%emt 0:00:24]} 77. Nxg5+ {[%emt 0:00:14]} Bxg5 {[%emt 0:00:11]} 78. Kxg5 {[%emt 0:00:04]} Kg7 {[%emt 0:00:04]} 79. Kf5 {[%emt 0:00:04]} Kf7 {[%emt 0:00:04]} 80. g5 {[%emt 0:00:05]} Kg7 {[%emt 0:00:07]} 81. g6 {[%emt 0:00:04]} Kg8 {[%emt 0:00:06]} 82. Kf6 {[%emt 0:00:04]} Kf8 {[%emt 0:00:04]} 83. g7+ {[%emt 0:00:05]} Kg8 {[%emt 0:00:02]} 84. Kg6 {[%emt 0:00:04]} 1/2-1/2

[Event "WCCC G12 2019"]
[Site "Weifang"]
[Date "2019.08.29"]
[Round "7"]
[White "Wang, Yuehan"]
[Black "Nurmanova, Alua"]
[Result "0-1"]
[ECO "B80"]
[WhiteElo "1600"]
[BlackElo "1850"]
[Annotator "NA"]
[PlyCount "85"]
[EventDate "2019.08.21"]
[EventType "swiss"]
[EventCountry "CHN"]
[SourceTitle "playchess.com"]
[Source "ChessBase"]
[SourceQuality "1"]
[TimeControl "40/5400+30:1800+30"]

1. e4 {[%emt 1:30:30]} c5 {[%emt 1:30:30]} 2. Nf3 {[%emt 0:00:30]} d6 {[%emt 0:00:30]} 3. d4 {[%emt 0:00:30]} cxd4 {[%emt 0:00:30]} 4. Nxd4 {[%emt 0:00:30]} Nf6 {[%emt 0:00:30]} 5. Nc3 {[%emt 0:00:30]} a6 {[%emt 0:00:30]} 6. f3 {[%emt 0:00:30]} e6 {[%emt 0:00:30]} 7. Be3 {[%emt 0:00:30]} b5 {[%emt 0:00:30]} 8. a4 {[%emt 0:00:30]} b4 {[%emt 0:00:30]} 9. Na2 {[%emt 0:00:30]} Bb7 {[%emt 0:00:30]} 10. Qd2 {[%emt 0:00:30]} d5 {[%emt 0:00:30]} 11. e5 {[%emt 0:00:30]} Nfd7 {[%emt 0:00:30]} 12. f4 {[%emt 0:00:30]} Nc5 {[%emt 0:00:30]} 13. Bd3 {[%emt 0:00:30]} Qb6 {[%emt 0:00:30]} 14. O-O {[%emt 0:00:30]} Nxd3 {[%emt 0:00:30]} 15. Qxd3 {[%emt 0:00:30]} Bc5 {[%emt 0:00:30]} 16. Nc1 {[%emt 0:00:30]} a5 {[%emt 0:00:30]} 17. Qd2 {[%emt 0:00:30]} Ba6 {[%emt 0:00:30]} 18. Rf3 {[%emt 0:00:30]} Bc4 {[%emt 0:00:30]} 19. Ncb3 {[%emt 0:00:30]} Bxb3 {[%emt 0:00:30]} 20. Nxb3 {[%emt 0:00:30]} Bxe3+ {[%emt 0:00:30]} 21. Qxe3 {[%emt 0:00:30]} Qxe3+ {[%emt 0:00:30]} 22. Rxe3 {[%emt 0:00:30]} Ke7 {[%emt 0:00:30]} 23. Nd4 {[%emt 0:00:30]} Rc8 {[%emt 0:00:30]} 24. Re2 {[%emt 0:00:30]} Rc4 {[%emt 0:00:30]} 25. Rd1 {[%emt 0:00:30]} Nc6 {[%emt 0:00:30]} 26. Nxc6+ {[%emt 0:00:30]} Rxc6 {[%emt 0:00:30]} 27. Kf2 {[%emt 0:00:30]} Rac8 {[%emt 0:00:30]} 28. Rdd2 {[%emt 0:00:30]} Rc4 {[%emt 0:00:30]} 29. g3 {[%emt 0:00:30]} Rb8 {[%emt 0:00:30]} 30. b3 {[%emt 0:00:30]} Rc5 {[%emt 0:00:30]} 31. Ke1 {[%emt 0:00:30]} h5 {[%emt 0:00:30]} 32. Rd3 {[%emt 0:00:30]} Rbc8 {[%emt 0:00:30]} 33. Kd1 {[%emt 0:00:30]} f6 {[%emt 0:00:30]} 34. Rde3 {[%emt 0:00:30]} R5c6 {[%emt 0:00:30]} 35. exf6+ {[%emt 0:00:30]} gxf6 {[%emt 0:00:30]} 36. Kc1 {[%emt 0:00:30]} Kf7 {[%emt 0:00:30]} 37. Kb1 {[%emt 0:00:30]} Rg8 {[%emt 0:00:30]} 38. h4 {[%emt 0:00:30]} Re8 {[%emt 0:00:30]} 39. Kb2 {[%emt 0:00:30]} Rec8 {[%emt 0:00:30]} 40. Kb1 {[%emt 0:00:30]} Re8 {[%emt 0:00:30]} 41. Kb2 {[%emt 0:30:30]} Rec8 {[%emt 0:30:30]} 42. Kb1 {[%emt 0:00:30]} Re8 {[%emt 0:00:30]} 43. Kc1 {[%emt 0:00:30]} 0-1

[Event "WCCC G12 2019"]
[Site "Weifang"]
[Date "2019.08.29"]
[Round "7"]
[White "Zakirova, Aisha"]
[Black "Nguyen, Ha Khanh Linh"]
[Result "0-1"]
[ECO "A21"]
[WhiteElo "1595"]
[BlackElo "1500"]
[Annotator "NA"]
[PlyCount "43"]
[EventDate "2019.08.21"]
[EventType "swiss"]
[EventCountry "CHN"]
[SourceTitle "playchess.com"]
[Source "ChessBase"]
[SourceQuality "1"]
[TimeControl "40/5400+30:1800+30"]

1. d4 {[%emt 0:00:00]} d6 {[%emt 0:00:00]} 2. c4 {[%emt 0:00:01]} e5 {[%emt 0:00:00]} 3. e3 {[%emt 0:00:53]} f5 {[%emt 0:02:18]} 4. Nc3 {[%emt 0:02:05]} Nf6 {[%emt 0:01:49]} 5. dxe5 {[%emt 0:05:17]} dxe5 {[%emt 0:00:58]} 6. Qxd8+ {[%emt 0:02:16]} Kxd8 {[%emt 0:00:06]} 7. e4 {[%emt 0:01:31]} Bb4 {[%emt 0:12:17]} 8. Bd2 {[%emt 0:09:45]} c6 {[%emt 0:03:26]} 9. Nf3 {[%emt 0:05:57]} Re8 {[%emt 0:12:14]} 10. O-O-O {[%emt 0:04:46]} Kc7 {[%emt 0:01:04]} 11. Re1 {[%emt 0:09:33]} Ng4 {[%emt 0:06:36]} 12. Re2 {[%emt 0:12:36]} Bc5 {[%emt 0:04:42]} 13. Be1 {[%emt 0:01:03]} f4 {[%emt 0:05:45]} 14. h3 {[%emt 0:01:08]} Nf6 {[%emt 0:01:32]} 15. Na4 {[%emt 0:05:26]} Bf8 {[%emt 0:02:00]} 16. b4 {[%emt 0:04:32]} Nbd7 {[%emt 0:02:48]} 17. Bc3 {[%emt 0:02:03]} b6 {[%emt 0:03:43]} 18. Re1 {[%emt 0:02:38]} Bb7 {[%emt 0:06:19]} 19. Bd3 {[%emt 0:02:21]} a5 {[%emt 0:10:03]} 20. bxa5 {[%emt 0:02:19]} Ba3+ {[%emt 0:01:32]} 21. Kc2 {[%emt 0:00:38]} bxa5 {[%emt 0:01:33]} 22. c5 {[%emt 0:07:49]} 0-1

[Event "WCCC G12 2019"]
[Site "Weifang"]
[Date "2019.08.29"]
[Round "7"]
[White "Anudari Tsogdelger"]
[Black "Manko, Mariya"]
[Result "0-1"]
[ECO "A43"]
[WhiteElo "1594"]
[BlackElo "1895"]
[Annotator "NA"]
[PlyCount "88"]
[EventDate "2019.08.21"]
[EventType "swiss"]
[EventCountry "CHN"]
[SourceTitle "playchess.com"]
[Source "ChessBase"]
[SourceQuality "1"]
[TimeControl "40/5400+30:1800+30"]

1. d4 {[%emt 1:30:30]} Nf6 {[%emt 1:30:30]} 2. c3 {[%emt 0:00:30]} c5 {[%emt 0:00:30]} 3. dxc5 {[%emt 0:00:30]} Qc7 {[%emt 0:00:30]} 4. b4 {[%emt 0:00:30]} a5 {[%emt 0:00:30]} 5. Bb2 {[%emt 0:00:30]} g6 {[%emt 0:00:30]} 6. Na3 {[%emt 0:00:30]} Na6 {[%emt 0:00:30]} 7. Qb3 {[%emt 0:00:30]} Bg7 {[%emt 0:00:30]} 8. Nc4 {[%emt 0:00:30]} O-O {[%emt 0:00:30]} 9. Nb6 {[%emt 0:00:30]} Rb8 {[%emt 0:00:30]} 10. e3 {[%emt 0:00:30]} d6 {[%emt 0:00:30]} 11. Bxa6 {[%emt 0:00:30]} bxa6 {[%emt 0:00:30]} 12. Qa3 {[%emt 0:00:30]} Qc6 {[%emt 0:00:30]} 13. f3 {[%emt 0:00:30]} dxc5 {[%emt 0:00:30]} 14. bxa5 {[%emt 0:00:30]} Ng4 {[%emt 0:00:30]} 15. e4 {[%emt 0:00:30]} Ne3 {[%emt 0:00:30]} 16. Rc1 {[%emt 0:00:30]} Nxg2+ {[%emt 0:00:30]} 17. Kf2 {[%emt 0:00:30]} Nf4 {[%emt 0:00:30]} 18. Rd1 {[%emt 0:00:30]} c4 {[%emt 0:00:30]} 19. Ne2 {[%emt 0:00:30]} Nd3+ {[%emt 0:00:30]} 20. Kg2 {[%emt 0:00:30]} Kh8 {[%emt 0:00:30]} 21. Bc1 {[%emt 0:00:30]} f5 {[%emt 0:00:30]} 22. e5 {[%emt 0:00:30]} Nxe5 {[%emt 0:00:30]} 23. Nd4 {[%emt 0:00:30]} Qf6 {[%emt 0:00:30]} 24. Bf4 {[%emt 0:00:30]} Rd8 {[%emt 0:00:30]} 25. Rhe1 {[%emt 0:00:30]} Rxb6 {[%emt 0:00:30]} 26. Bxe5 {[%emt 0:00:30]} Qg5+ {[%emt 0:00:30]} 27. Kh1 {[%emt 0:00:30]} Bxe5 {[%emt 0:00:30]} 28. axb6 {[%emt 0:00:30]} Qf4 {[%emt 0:00:30]} 29. Qb2 {[%emt 0:00:30]} Bb7 {[%emt 0:00:30]} 30. Kg1 {[%emt 0:00:30]} Rd6 {[%emt 0:00:30]} 31. Qe2 {[%emt 0:00:30]} Qg5+ {[%emt 0:00:30]} 32. Kh1 {[%emt 0:00:30]} Bf6 {[%emt 0:00:30]} 33. Ne6 {[%emt 0:00:30]} Rxe6 {[%emt 0:00:30]} 34. Qg2 {[%emt 0:00:30]} Rxe1+ {[%emt 0:00:30]} 35. Rxe1 {[%emt 0:00:30]} Qf4 {[%emt 0:00:30]} 36. Rf1 {[%emt 0:00:30]} Bxc3 {[%emt 0:00:30]} 37. Qe2 {[%emt 0:00:30]} Be5 {[%emt 0:00:30]} 38. a4 {[%emt 0:00:30]} c3 {[%emt 0:00:30]} 39. a5 {[%emt 0:00:30]} g5 {[%emt 0:00:30]} 40. h3 {[%emt 0:00:30]} g4 {[%emt 0:00:30]} 41. hxg4 {[%emt 0:30:30]} fxg4 {[%emt 0:30:30]} 42. Kg1 {[%emt 0:00:30]} gxf3 {[%emt 0:00:30]} 43. Qc2 {[%emt 0:00:30]} Qg3+ {[%emt 0:00:30]} 44. Kh1 {[%emt 0:00:30]} f2+ {[%emt 0:00:30]} 0-1

[Event "WCCC G12 2019"]
[Site "Weifang"]
[Date "2019.08.29"]
[Round "7"]
[White "Wang, Xiyue"]
[Black "Wang, Ellen"]
[Result "1/2-1/2"]
[ECO "B92"]
[WhiteElo "1540"]
[BlackElo "1867"]
[Annotator "NA"]
[PlyCount "94"]
[EventDate "2019.08.21"]
[EventType "swiss"]
[EventCountry "CHN"]
[SourceTitle "playchess.com"]
[Source "ChessBase"]
[SourceQuality "1"]
[TimeControl "40/5400+30:1800+30"]

1. e4 {[%emt 1:30:30]} c5 {[%emt 1:30:30]} 2. Nf3 {[%emt 0:00:30]} d6 {[%emt 0:00:30]} 3. d4 {[%emt 0:00:30]} cxd4 {[%emt 0:00:30]} 4. Nxd4 {[%emt 0:00:30]} Nf6 {[%emt 0:00:30]} 5. Nc3 {[%emt 0:00:30]} a6 {[%emt 0:00:30]} 6. Be2 {[%emt 0:00:30]} e5 {[%emt 0:00:30]} 7. Nb3 {[%emt 0:00:30]} Be7 {[%emt 0:00:30]} 8. O-O {[%emt 0:00:30]} O-O {[%emt 0:00:30]} 9. f4 {[%emt 0:00:30]} b5 {[%emt 0:00:30]} 10. a4 {[%emt 0:00:30]} b4 {[%emt 0:00:30]} 11. Nd5 {[%emt 0:00:30]} Nxd5 {[%emt 0:00:30]} 12. Qxd5 {[%emt 0:00:30]} Qb6+ {[%emt 0:00:30]} 13. Kh1 {[%emt 0:00:30]} Bb7 {[%emt 0:00:30]} 14. Qd3 {[%emt 0:00:30]} Nd7 {[%emt 0:00:30]} 15. f5 {[%emt 0:00:30]} Rac8 {[%emt 0:00:30]} 16. Bf3 {[%emt 0:00:30]} Qc7 {[%emt 0:00:30]} 17. Rf2 {[%emt 0:00:30]} Rfe8 {[%emt 0:00:30]} 18. g4 {[%emt 0:00:30]} h6 {[%emt 0:00:30]} 19. Rg2 {[%emt 0:00:30]} Nf8 {[%emt 0:00:30]} 20. g5 {[%emt 0:00:30]} hxg5 {[%emt 0:00:30]} 21. Bxg5 {[%emt 0:00:30]} Bxg5 {[%emt 0:00:30]} 22. Rxg5 {[%emt 0:00:30]} Nh7 {[%emt 0:00:30]} 23. Rg2 {[%emt 0:00:30]} f6 {[%emt 0:00:30]} 24. h4 {[%emt 0:00:30]} d5 {[%emt 0:00:30]} 25. Rag1 {[%emt 0:00:30]} Re7 {[%emt 0:00:30]} 26. exd5 {[%emt 0:00:30]} Qc4 {[%emt 0:00:30]} 27. Be4 {[%emt 0:00:30]} Qxd3 {[%emt 0:00:30]} 28. cxd3 {[%emt 0:00:30]} Rd8 {[%emt 0:00:30]} 29. Nc5 {[%emt 0:00:30]} Bxd5 {[%emt 0:00:30]} 30. Bxd5+ {[%emt 0:00:30]} Rxd5 {[%emt 0:00:30]} 31. Ne6 {[%emt 0:00:30]} Rdd7 {[%emt 0:00:30]} 32. Rc2 {[%emt 0:00:30]} Re8 {[%emt 0:00:30]} 33. Rc4 {[%emt 0:00:30]} Nf8 {[%emt 0:00:30]} 34. Nc5 {[%emt 0:00:30]} Rd4 {[%emt 0:00:30]} 35. Rxd4 {[%emt 0:00:30]} exd4 {[%emt 0:00:30]} 36. Nxa6 {[%emt 0:00:30]} Re5 {[%emt 0:00:30]} 37. Nxb4 {[%emt 0:00:30]} Rxf5 {[%emt 0:00:30]} 38. Rg4 {[%emt 0:00:30]} Ne6 {[%emt 0:00:30]} 39. Re4 {[%emt 0:00:30]} Kf7 {[%emt 0:00:30]} 40. Nc6 {[%emt 0:00:30]} Rc5 {[%emt 0:00:30]} 41. Nxd4 {[%emt 0:30:30]} Nxd4 {[%emt 0:30:30]} 42. Rxd4 {[%emt 0:00:30]} Rc1+ {[%emt 0:00:30]} 43. Kg2 {[%emt 0:00:30]} Rc2+ {[%emt 0:00:30]} 44. Kf3 {[%emt 0:00:30]} Rxb2 {[%emt 0:00:30]} 45. Rc4 {[%emt 0:00:30]} Ke6 {[%emt 0:00:30]} 46. Ke3 {[%emt 0:00:30]} Kd5 {[%emt 0:00:30]} 47. Rg4 {[%emt 0:00:30]} Ra2 {[%emt 0:00:30]} 1/2-1/2

[Event "WCCC G12 2019"]
[Site "Weifang"]
[Date "2019.08.29"]
[Round "7"]
[White "Liu, Kelsey"]
[Black "Ivanova, Dilyana"]
[Result "0-1"]
[ECO "B80"]
[WhiteElo "1486"]
[BlackElo "1673"]
[Annotator "NA"]
[PlyCount "76"]
[EventDate "2019.08.21"]
[EventType "swiss"]
[EventCountry "CHN"]
[SourceTitle "playchess.com"]
[Source "ChessBase"]
[SourceQuality "1"]
[TimeControl "40/5400+30:1800+30"]

1. e4 {[%emt 1:30:30]} c5 {[%emt 1:30:30]} 2. Nf3 {[%emt 0:00:30]} e6 {[%emt 0:00:30]} 3. Nc3 {[%emt 0:00:30]} d6 {[%emt 0:00:30]} 4. d4 {[%emt 0:00:30]} cxd4 {[%emt 0:00:30]} 5. Nxd4 {[%emt 0:00:30]} Nf6 {[%emt 0:00:30]} 6. g3 {[%emt 0:00:30]} Be7 {[%emt 0:00:30]} 7. Bg2 {[%emt 0:00:30]} O-O {[%emt 0:00:30]} 8. Be3 {[%emt 0:00:30]} Nc6 {[%emt 0:00:30]} 9. O-O {[%emt 0:00:30]} Bd7 {[%emt 0:00:30]} 10. Kh1 {[%emt 0:00:30]} a6 {[%emt 0:00:30]} 11. Qe2 {[%emt 0:00:30]} Rc8 {[%emt 0:00:30]} 12. Rad1 {[%emt 0:00:30]} Qc7 {[%emt 0:00:30]} 13. f4 {[%emt 0:00:30]} Nxd4 {[%emt 0:00:30]} 14. Bxd4 {[%emt 0:00:30]} e5 {[%emt 0:00:30]} 15. Be3 {[%emt 0:00:30]} b5 {[%emt 0:00:30]} 16. a3 {[%emt 0:00:30]} Bc6 {[%emt 0:00:30]} 17. f5 {[%emt 0:00:30]} Qb7 {[%emt 0:00:30]} 18. Bc1 {[%emt 0:00:30]} Rfd8 {[%emt 0:00:30]} 19. Qf3 {[%emt 0:00:30]} a5 {[%emt 0:00:30]} 20. Rf2 {[%emt 0:00:30]} b4 {[%emt 0:00:30]} 21. Nd5 {[%emt 0:00:30]} Bxd5 {[%emt 0:00:30]} 22. exd5 {[%emt 0:00:30]} Rc4 {[%emt 0:00:30]} 23. Bf1 {[%emt 0:00:30]} Rc5 {[%emt 0:00:30]} 24. g4 {[%emt 0:00:30]} Rxd5 {[%emt 0:00:30]} 25. g5 {[%emt 0:00:30]} e4 {[%emt 0:00:30]} 26. Qe2 {[%emt 0:00:30]} Rxd1 {[%emt 0:00:30]} 27. Qxd1 {[%emt 0:00:30]} e3+ {[%emt 0:00:30]} 28. Bg2 {[%emt 0:00:30]} Ne4 {[%emt 0:00:30]} 29. Rf4 {[%emt 0:00:30]} d5 {[%emt 0:00:30]} 30. f6 {[%emt 0:00:30]} Bd6 {[%emt 0:00:30]} 31. Rxe4 {[%emt 0:00:30]} dxe4 {[%emt 0:00:30]} 32. Bxe3 {[%emt 0:00:30]} bxa3 {[%emt 0:00:30]} 33. bxa3 {[%emt 0:00:30]} Bc7 {[%emt 0:00:30]} 34. Qa1 {[%emt 0:00:30]} Qd5 {[%emt 0:00:30]} 35. Bh3 {[%emt 0:00:30]} Qd6 {[%emt 0:00:30]} 36. Bg1 {[%emt 0:00:30]} e3 {[%emt 0:00:30]} 37. Qc3 {[%emt 0:00:30]} e2 {[%emt 0:00:30]} 38. Bg2 {[%emt 0:00:30]} Qd1 {[%emt 0:00:30]} 0-1

[Event "WCCC G12 2019"]
[Site "Weifang"]
[Date "2019.08.29"]
[Round "8.1"]
[White "Nurmanova, Alua"]
[Black "Yan, Ruiyang"]
[Result "0-1"]
[ECO "B94"]
[WhiteElo "1850"]
[BlackElo "1983"]
[Annotator "NA"]
[PlyCount "74"]
[EventDate "2019.08.21"]
[EventType "swiss"]
[EventCountry "CHN"]
[SourceTitle "playchess.com"]
[Source "ChessBase"]
[SourceQuality "1"]
[TimeControl "40/5400+30:1800+30"]

1. e4 {[%emt 0:00:00]} c5 {[%emt 0:00:00]} 2. Nf3 {[%emt 0:00:00]} d6 {[%emt 0:00:00]} 3. d4 {[%emt 0:00:00]} cxd4 {[%emt 0:00:00]} 4. Nxd4 {[%emt 0:00:00]} Nf6 {[%emt 0:00:00]} 5. Nc3 {[%emt 0:00:02]} a6 {[%emt 0:00:03]} 6. Bg5 {[%emt 0:00:26]} Nbd7 {[%emt 0:00:12]} 7. Bc4 {[%emt 0:01:01]} Qb6 {[%emt 0:00:16]} 8. Bb3 {[%emt 0:11:32]} e6 {[%emt 0:00:32]} 9. Qd2 {[%emt 0:14:05]} Be7 {[%emt 0:00:40]} 10. O-O-O {[%emt 0:12:22]} Nc5 {[%emt 0:00:19]} 11. Qe2 {[%emt 0:08:17]} Qc7 $11 {[%emt 0:25:16]} 12. f4 {[%emt 0:11:38]} b5 {[%emt 0:07:28]} 13. Rhe1 {[%emt 0:12:19]} b4 {[%emt 0:10:18]} 14. Bxf6 {[%emt 0:03:46]} gxf6 {[%emt 0:07:53]} 15. Nd5 {[%emt 0:06:08]} exd5 {[%emt 0:00:50]} 16. exd5 {[%emt 0:00:07]} Kf8 {[%emt 0:02:03]} 17. Nc6 {[%emt 0:07:13]} Bd8 {[%emt 0:01:16]} 18. Qh5 {[%emt 0:02:06]} h6 {[%emt 0:01:37]} 19. Re3 {[%emt 0:02:20]} Bd7 {[%emt 0:09:32]} 20. Rde1 {[%emt 0:02:06]} Rc8 {[%emt 0:10:40]} 21. Bc4 {[%emt 0:00:47]} f5 {[%emt 0:03:26]} 22. Ne5 {[%emt 0:01:24]} Rh7 {[%emt 0:02:58]} 23. Nxd7+ {[%emt 0:01:24]} Qxd7 {[%emt 0:01:03]} 24. Re8+ {[%emt 0:00:31]} Kg7 {[%emt 0:00:12]} 25. Qh3 {[%emt 0:02:20]} Bh4 {[%emt 0:01:28]} 26. Rxc8 {[%emt 0:00:30]} Bxe1 {[%emt 0:00:08]} 27. Ra8 {[%emt 0:00:23]} Rh8 {[%emt 0:06:01]} 28. Rxh8 {[%emt 0:00:07]} Kxh8 {[%emt 0:00:04]} 29. Qxh6+ {[%emt 0:00:08]} Kg8 {[%emt 0:00:04]} 30. Qg5+ {[%emt 0:00:19]} Kf8 {[%emt 0:00:04]} 31. Qh6+ {[%emt 0:00:44]} Ke8 {[%emt 0:00:09]} 32. Qh8+ {[%emt 0:00:42]} Ke7 {[%emt 0:00:03]} 33. Kd1 {[%emt 0:00:42]} Bf2 {[%emt 0:00:29]} 34. Ke2 {[%emt 0:00:21]} Ne4 {[%emt 0:00:03]} 35. Bd3 {[%emt 0:00:48]} Qa7 {[%emt 0:00:05]} 36. Qh3 {[%emt 0:00:19]} Ng3+ {[%emt 0:00:40]} 37. Kd1 {[%emt 0:00:08]} Qe3 {[%emt 0:00:06]} 0-1

[Event "WCCC G12 2019"]
[Site "Weifang"]
[Date "2019.08.29"]
[Round "8.2"]
[White "Nguyen, Ha Khanh Linh"]
[Black "Mikheeva, Galina"]
[Result "0-1"]
[ECO "D35"]
[WhiteElo "1500"]
[BlackElo "1952"]
[Annotator "NA"]
[PlyCount "84"]
[EventDate "2019.08.21"]
[EventType "swiss"]
[EventCountry "CHN"]
[SourceTitle "playchess.com"]
[Source "ChessBase"]
[SourceQuality "1"]
[TimeControl "40/5400+30:1800+30"]

1. d4 {[%emt 0:00:00]} Nf6 {[%emt 0:00:00]} 2. c4 {[%emt 0:00:08]} e6 {[%emt 0:00:00]} 3. Nc3 {[%emt 0:00:08]} d5 {[%emt 0:00:02]} 4. cxd5 {[%emt 0:00:08]} exd5 {[%emt 0:00:06]} 5. Bg5 {[%emt 0:00:19]} Bb4 {[%emt 0:02:31]} 6. Qb3 {[%emt 0:09:13]} Bxc3+ {[%emt 0:08:14]} 7. Qxc3 {[%emt 0:01:52]} c6 {[%emt 0:00:57]} 8. Rc1 {[%emt 0:07:43]} O-O {[%emt 0:04:16]} 9. Nf3 {[%emt 0:04:16]} h6 {[%emt 0:14:43]} 10. Bh4 {[%emt 0:01:26]} g5 {[%emt 0:02:29]} 11. Bg3 {[%emt 0:01:38]} Ne4 {[%emt 0:00:09]} 12. Qa3 {[%emt 0:02:56]} Nd7 $14 {[%emt 0:05:36]} 13. e3 {[%emt 0:02:13]} f5 {[%emt 0:15:20]} 14. Bd6 {[%emt 0:06:32]} Re8 {[%emt 0:01:56]} 15. Bd3 {[%emt 0:05:24]} Qf6 {[%emt 0:09:51]} 16. Be5 {[%emt 0:15:56]} Qe6 {[%emt 0:06:51]} 17. h3 {[%emt 0:07:24]} b6 {[%emt 0:04:25]} 18. O-O {[%emt 0:07:07]} Bb7 {[%emt 0:01:00]} 19. Bh2 {[%emt 0:04:11]} Rf8 {[%emt 0:12:08]} 20. Ne5 {[%emt 0:09:03]} h5 {[%emt 0:04:55]} 21. Ba6 {[%emt 0:06:37]} Bxa6 {[%emt 0:01:21]} 22. Rxc6 {[%emt 0:01:38]} Qe8 {[%emt 0:01:00]} 23. Nxd7 {[%emt 0:01:11]} Qxd7 {[%emt 0:01:10]} 24. Rc7 {[%emt 0:00:26]} Qb5 {[%emt 0:01:12]} 25. Rfc1 {[%emt 0:01:29]} Rac8 {[%emt 0:00:57]} 26. Rxc8 {[%emt 0:02:46]} Rxc8 {[%emt 0:00:47]} 27. Rxc8+ {[%emt 0:00:20]} Bxc8 {[%emt 0:00:04]} 28. Qe7 {[%emt 0:00:31]} Qd7 {[%emt 0:00:20]} 29. Qb4 {[%emt 0:00:51]} Kf7 {[%emt 0:00:27]} 30. f3 {[%emt 0:00:13]} Nf6 {[%emt 0:00:20]} 31. Be5 {[%emt 0:00:25]} Qe7 {[%emt 0:00:45]} 32. Qb5 {[%emt 0:00:52]} Bb7 {[%emt 0:00:27]} 33. Qd3 {[%emt 0:00:27]} Bc8 {[%emt 0:00:39]} 34. Qb5 {[%emt 0:00:31]} Qe6 {[%emt 0:01:19]} 35. Qa4 {[%emt 0:00:41]} a6 {[%emt 0:00:07]} 36. Kf2 {[%emt 0:00:16]} Nd7 {[%emt 0:00:43]} 37. Bc7 {[%emt 0:00:28]} Bb7 {[%emt 0:00:30]} 38. Qb4 {[%emt 0:00:36]} a5 {[%emt 0:00:48]} 39. Qa3 {[%emt 0:00:08]} Ke8 {[%emt 0:00:26]} 40. Qd3 {[%emt 0:00:00]} Qf7 {[%emt 0:00:00]} 41. Bd6 {[%emt 0:00:48]} Qe6 {[%emt 0:02:42]} 42. Ba3 {[%emt 0:00:37]} Nb8 {[%emt 0:01:53]} 0-1